bitfinex/quotes_SOLUSD_20250527
["timestamp","ask_amount","ask_price","bid_price","bid_amount"]
[1748313063054,18.64964886,172.87,172.81,40.48665]
[1748313063370,18.64964886,172.87,172.81,99.58665]
[1748313064357,18.64964886,172.87,172.82,26.0]
[1748313065054,23.53010729,172.87,172.82,26.0]
[1748313065368,21.21617666,172.86,172.82,26.0]
[1748313065974,21.21617666,172.85,172.81,93.8]
[1748313066276,23.53035782,172.85,172.81,93.8]
[1748313066774,23.53035782,172.85,172.82,34.7]
[1748313066949,18.64964886,172.91,172.83,26.0]
[1748313067149,21.21617666,172.9,172.83,85.1]
[1748313067871,21.21617666,172.89,172.83,85.1]
[1748313068772,23.52981459,172.89,172.83,90.88583024]
[1748313070959,21.21617666,172.89,172.83,90.88583024]
[1748313071786,23.52965265,172.9,172.83,90.88583024]
[1748313072565,23.52991271,172.89,172.83,90.88583024]
[1748313073590,23.52991271,172.89,172.83,85.1]
[1748313073882,21.21617666,172.88,172.83,85.1]
[1748313074671,23.53001119,172.88,172.83,85.1]
[1748313074978,2.31383453,172.88,172.83,85.1]
[1748313075886,23.52981823,172.89,172.83,90.88602563]
[1748313076987,23.52981823,172.89,172.83,85.1]
[1748313079489,23.52981823,172.89,172.83,90.88592489]
[1748313079686,2.3135111,172.9,172.83,90.88592489]
[1748313083697,20.96302101,172.91,172.83,90.88592489]
[1748313083991,42.17919767,172.91,172.83,90.88592489]
[1748313085194,2.3136098,172.89,172.83,85.1]
[1748313085399,23.52978646,172.89,172.83,85.1]
[1748313085586,21.21617666,172.88,172.83,85.1]
[1748313085785,23.52978646,172.89,172.84,34.7]
[1748313087197,2.31347599,172.9,172.84,34.7]
[1748313089269,5.6363927,172.89,172.84,93.8]
[1748313090291,5.6363927,172.89,172.85,34.7]
[1748313090702,2.3136602,172.89,172.85,34.7]
[1748313091781,4.1283337,172.92,172.88,26.0]
[1748313091981,4.1283337,172.92,172.89,34.7]
[1748313093199,3.32208753,172.91,172.89,34.7]
[1748313094402,23.5294149,172.92,172.89,34.7]
[1748313096001,4.1283337,172.95,172.89,93.8]
[1748313096185,39.86582552,172.94,172.89,93.8]
[1748313096500,18.64964886,172.94,172.89,93.8]
[1748313097003,3.32029126,172.93,172.89,93.8]
[1748313097886,5.63340849,172.93,172.89,93.8]
[1748313098289,2.31311723,172.93,172.89,93.8]
[1748313098498,23.52929389,172.93,172.89,93.8]
[1748313098697,21.21617666,172.9,172.89,59.1]
[1748313098884,39.86582552,172.9,172.89,59.1]
[1748313099080,18.64964886,172.89,172.83,59.1]
[1748313099281,21.21617666,172.86,172.83,59.1]
[1748313099489,2.31414521,172.85,172.84,34.68]
[1748313100006,2.31414521,172.85,172.82,36.52]
[1748313100191,2.31414521,172.85,172.84,34.68]
[1748313102815,23.53032187,172.85,172.82,62.52]
[1748313102986,23.53032187,172.85,172.83,34.7]
[1748313103187,2.31414521,172.85,172.83,34.7]
[1748313104209,2.31414521,172.85,172.83,93.8]
[1748313104510,2.31414521,172.85,172.83,34.7]
[1748313104715,2.31414521,172.85,172.82,121.62]
[1748313104716,21.21617666,172.84,172.79,59.1]
[1748313104891,21.21617666,172.83,172.8,34.7]
[1748313105710,21.21617666,172.84,172.79,85.1]
[1748313105900,23.53021785,172.86,172.81,34.7]
[1748313109607,16.05090356,172.9,172.84,26.0]
[1748313109608,10.2670337,172.9,172.84,26.0]
[1748313109816,10.2670337,172.9,172.85,34.7]
[1748313109817,25.34451036,172.9,172.85,34.7]
[1748313110505,21.21617666,172.9,172.85,34.7]
[1748313111918,21.21617666,172.89,172.85,34.7]
[1748313112120,21.21617666,172.86,172.84,93.8]
[1748313112309,21.21617666,172.86,172.84,34.7]
[1748313112797,39.86582552,172.88,172.84,34.7]
[1748313114523,2.31387748,172.87,172.84,34.7]
[1748313114821,23.52965265,172.9,172.84,34.7]
[1748313115022,21.21617666,172.89,172.84,93.8]
[1748313116521,23.5299181,172.89,172.84,93.8]
[1748313117807,23.52969039,172.9,172.85,26.0]
[1748313118200,21.21617666,172.89,172.85,26.0]
[1748313118931,21.21617666,172.89,172.85,85.1]
[1748313120829,23.52992029,172.88,172.85,85.1]
[1748313121725,21.21617666,172.87,172.85,119.8]
[1748313122424,21.21617666,172.87,172.85,85.1]
[1748313122624,23.52992029,172.88,172.85,119.8]
[1748313123107,2.31374363,172.88,172.85,119.8]
[1748313123517,23.52992029,172.88,172.85,119.8]
[1748313124629,23.52992029,172.88,172.85,85.1]
[1748313124828,23.52992029,172.88,172.86,34.7]
[1748313127106,21.21617666,172.87,172.86,34.7]
[1748313127307,18.64964886,172.86,172.85,34.7]
[1748313127532,42.17983685,172.86,172.85,34.7]
[1748313127917,42.17983685,172.86,172.84,34.7]
[1748313128834,2.31401133,172.86,172.84,34.7]
[1748313129038,23.53006274,172.87,172.84,34.7]
[1748313130829,23.53006274,172.87,172.84,93.8]
[1748313132819,39.86582552,172.85,172.84,59.1]
[1748313134346,39.86582552,172.85,172.81,34.7]
[1748313134526,21.21617666,172.82,172.81,34.7]
[1748313134727,2.3142791,172.84,172.79,26.0]
[1748313134924,2.3142791,172.84,172.81,34.7]
[1748313135944,23.53045576,172.84,172.81,34.7]
[1748313136645,21.21617666,172.83,172.81,34.7]
[1748313136827,39.86582552,172.82,172.76,60.7619]
[1748313137145,21.21617666,172.8,172.77,34.7]
[1748313137342,21.21617666,172.8,172.77,93.8]
[1748313137520,18.64964886,172.82,172.77,93.8]
[1748313137726,2.3142791,172.84,172.77,93.8]
[1748313137931,23.53045576,172.84,172.77,93.8]
[1748313139330,23.53045576,172.84,172.8,26.0]
[1748313139522,23.53045576,172.84,172.81,34.7]
[1748313140538,21.21617666,172.83,172.81,34.7]
[1748313141243,23.53045576,172.84,172.81,34.7]
[1748313144529,2.3142791,172.84,172.81,93.8]
[1748313146249,23.53045576,172.84,172.81,93.8]
[1748313151832,21.21617666,172.85,172.81,93.8]
[1748313152750,2.3142791,172.84,172.81,93.8]
[1748313157764,2.3142791,172.84,172.81,59.1]
[1748313157939,23.53045576,172.84,172.82,34.7]
[1748313159766,21.21617666,172.83,172.81,59.1]
[1748313159939,21.21617666,172.83,172.82,34.7]
[1748313160639,23.53045576,172.84,172.82,34.7]
[1748313166745,21.21617666,172.83,172.82,34.7]
[1748313167565,42.18023852,172.83,172.82,34.7]
[1748313167768,42.18023852,172.83,172.81,34.7]
[1748313168067,21.21617666,172.82,172.81,34.7]
[1748313168366,20.96406186,172.83,172.81,34.7]
[1748313168541,21.21617666,172.82,172.81,34.7]
[1748313169464,23.53072358,172.82,172.81,34.7]
[1748313170363,23.53072358,172.82,172.8,85.1]
[1748313170549,23.53085752,172.81,172.8,59.1]
[1748313170742,23.53085752,172.81,172.8,93.8]
[1748313171244,21.21617666,172.85,172.8,93.8]
[1748313171445,21.21617666,172.85,172.8,119.8]
[1748313172967,23.53022026,172.86,172.8,125.58698759]
[1748313176879,20.96349639,172.88,172.83,26.0]
[1748313177049,21.21617666,172.88,172.84,34.7]
[1748313177664,23.52992277,172.88,172.84,34.7]
[1748313178056,3.32649262,172.87,172.84,34.7]
[1748313179079,23.52992277,172.88,172.84,34.7]
[1748313180483,21.21617666,172.87,172.84,34.7]
[1748313180687,21.21617666,172.86,172.84,34.7]
[1748313181172,21.21617666,172.86,172.84,59.1]
[1748313181379,8.09763432,172.89,172.84,59.1]
[1748313181380,21.21617666,172.85,172.84,59.1]
[1748313182085,21.21617666,172.85,172.84,93.8]
[1748313182881,23.53032187,172.85,172.84,93.8]
[1748313183380,26.8566541,172.85,172.84,93.8]
[1748313183767,18.64964886,172.84,172.79,26.0]
[1748313183969,21.21617666,172.82,172.79,26.0]
[1748313184158,5.64047744,172.85,172.8,34.7]
[1748313184359,21.21617666,172.82,172.8,34.7]
[1748313184668,21.21617666,172.83,172.8,34.7]
[1748313185286,23.53060778,172.83,172.79,26.0]
[1748313185582,2.31401133,172.86,172.8,34.7]
[1748313185795,21.21617666,172.85,172.8,34.7]
[1748313186974,21.21617666,172.85,172.8,93.8]
[1748313187390,20.71617666,172.85,172.8,93.8]
[1748313188088,20.69217666,172.85,172.8,93.8]
[1748313188489,20.69217666,172.85,172.8,99.58690426]
[1748313189183,23.00635441,172.85,172.8,93.8]
[1748313190972,21.21617666,172.86,172.8,99.58697716]
[1748313191173,21.21617666,172.86,172.83,26.0]
[1748313191386,21.21617666,172.86,172.84,34.7]
[1748313191685,23.53008893,172.87,172.84,34.7]
[1748313191887,23.52993023,172.88,172.84,93.8]
[1748313192379,21.21617666,172.87,172.84,93.8]
[1748313193193,23.53015489,172.87,172.84,93.8]
[1748313194278,21.21617666,172.87,172.84,93.8]
[1748313196471,21.21617666,172.85,172.84,93.8]
[1748313196977,2.31391815,172.87,172.84,93.8]
[1748313197182,21.21617666,172.86,172.84,93.8]
[1748313197493,23.53020041,172.86,172.84,93.8]
[1748313198096,2.31402375,172.86,172.84,93.8]
[1748313198278,23.530091,172.87,172.84,93.8]
[1748313199792,2.31391434,172.87,172.84,93.8]
[1748313202279,23.530091,172.87,172.84,93.8]
[1748313205487,21.21617666,172.87,172.84,93.8]
[1748313205691,23.52992195,172.88,172.84,93.8]
[1748313206505,3.32460449,172.87,172.84,93.8]
[1748313207509,23.52992195,172.88,172.84,93.8]
[1748313209185,21.21617666,172.87,172.84,93.8]
[1748313212207,21.21617666,172.88,172.84,93.8]
[1748313212412,3.32439118,172.87,172.84,93.8]
[1748313213412,23.52999193,172.88,172.84,93.8]
[1748313216316,3.32559619,172.87,172.84,93.8]
[1748313217520,23.52999193,172.88,172.84,93.8]
[1748313218022,13.56366254,172.88,172.84,93.8]
[1748313219606,2.3136098,172.89,172.84,93.8]
[1748313219807,20.00550248,172.9,172.84,101.22384924]
[1748313220011,3.32565675,172.89,172.84,101.22384924]
[1748313220728,3.32565675,172.89,172.87,26.0]
[1748313220902,3.32565675,172.89,172.88,34.7]
[1748313221626,2.31338,172.91,172.88,34.7]
[1748313222131,13.56366254,172.91,172.88,34.7]
[1748313222431,13.56366254,172.9,172.88,34.7]
[1748313223730,2.31347599,172.9,172.88,34.7]
[1748313227634,5.78249677,172.94,172.88,34.7]
[1748313227939,15.87673719,172.93,172.88,93.8]
[1748313228329,3.31991209,172.92,172.88,93.8]
[1748313228532,13.56366254,172.91,172.88,93.8]
[1748313228920,2.31347599,172.9,172.88,93.8]
[1748313229123,3.31991209,172.92,172.88,93.8]
[1748313229320,13.56366254,172.93,172.88,93.8]
[1748313229740,18.64964886,172.94,172.88,93.8]
[1748313229917,13.56366254,172.93,172.88,93.8]
[1748313230836,15.87677054,172.93,172.88,93.8]
[1748313231036,2.313108,172.93,172.88,93.8]
[1748313231426,15.87661365,172.94,172.88,99.58425329]
[1748313232243,3.31896143,172.93,172.88,99.58425329]
[1748313233432,15.87661365,172.94,172.88,99.58425329]
[1748313234716,15.87661365,172.94,172.88,93.8]
[1748313234933,13.56366254,172.93,172.88,93.8]
[1748313236219,13.56366254,172.93,172.88,59.1]
[1748313236421,13.56366254,172.93,172.89,34.68]
[1748313236639,2.31320842,172.92,172.89,34.68]
[1748313238147,2.31294317,172.94,172.92,26.0]
[1748313238442,2.31294317,172.94,172.93,34.68]
[1748313241545,2.31280716,172.95,172.93,34.68]
[1748313250472,2.31267345,172.96,172.93,34.68]
[1748313252478,16.87776018,172.97,172.93,34.68]
[1748313252641,3.31409764,172.97,172.93,34.68]
[1748313252840,5.62665523,172.97,172.93,34.68]
[1748313253473,2.31255759,172.97,172.93,34.68]
[1748313256378,13.56366254,172.95,172.94,34.68]
[1748313256588,18.64964886,172.96,172.94,34.68]
[1748313256764,32.2133114,172.96,172.94,34.68]
[1748313257070,18.64964886,172.96,172.94,34.68]
[1748313257441,2.31255759,172.97,172.94,34.68]
[1748313257668,2.31242882,172.98,172.94,93.78]
[1748313257853,3.31409764,172.99,172.98,26.0]
[1748313258054,3.31409764,172.99,172.98,60.68]
[1748313258457,5.62607959,173.02,172.98,60.68]
[1748313258664,5.62607959,173.02,172.98,119.78]
[1748313258665,3.31409764,173.02,172.98,119.78]
[1748313259072,1.76463887,173.03,172.98,119.78]
[1748313259263,25.08958301,173.05,172.98,119.78]
[1748313259443,6.43993415,173.05,172.98,60.68]
[1748313259853,6.43993415,173.05,172.98,66.46083346]
[1748313260255,4.1283337,173.05,172.98,66.46083346]
[1748313260869,4.1283337,173.05,172.99,1.6484]
[1748313261279,4.1283337,173.05,173.04,1.6484]
[1748313261575,4.1283337,173.05,173.04,72.7084]
[1748313261962,4.1283337,173.05,173.04,78.48741063]
[1748313262159,2.31039994,173.14,173.07,26.0]
[1748313262376,2.31039994,173.14,173.08,34.68]
[1748313263677,2.31013572,173.15,173.08,34.68]
[1748313264178,2.31013572,173.15,173.11,26.0]
[1748313264368,2.31013572,173.15,173.08,34.68]
[1748313264369,23.45717625,173.15,173.12,34.68]
[1748313264682,2.31013572,173.15,173.12,34.68]
[1748313264874,23.45717625,173.15,173.12,34.68]
[1748313265259,2.31013572,173.15,173.12,34.68]
[1748313267476,23.45717625,173.15,173.12,34.68]
[1748313269980,23.45717625,173.15,173.12,93.78]
[1748313270771,21.14704053,173.14,173.12,93.78]
[1748313271257,2.31013572,173.15,173.12,93.78]
[1748313271464,23.45717625,173.15,173.12,93.76]
[1748313272065,21.14704053,173.13,173.12,93.76]
[1748313272481,2.31013572,173.15,173.12,93.76]
[1748313272978,21.14704053,173.13,173.12,93.76]
[1748313273778,39.79668939,173.13,173.12,59.1]
[1748313273982,18.64964886,173.12,173.08,60.26312227]
[1748313274158,60.94372992,173.09,173.08,1.16312227]
[1748313274556,39.79668939,173.09,173.08,1.16312227]
[1748313274769,42.10762589,173.09,173.08,1.16312227]
[1748313278693,2.31120355,173.07,173.01,36.36]
[1748313278864,21.14704053,173.02,173.01,36.36]
[1748313279064,21.14704053,173.02,173.01,97.02]
[1748313279381,21.14704053,173.02,173.01,71.02]
[1748313279581,21.14704053,173.02,173.01,97.02]
[1748313280394,21.14704053,173.02,173.01,59.1]
[1748313280688,23.45891198,173.02,173.01,59.1]
[1748313280891,23.45891198,173.02,173.01,93.76]
[1748313283179,23.45891198,173.02,173.01,59.1]
[1748313283379,23.45891198,173.02,173.01,93.76]
[1748313283578,42.10856084,173.02,173.01,93.76]
[1748313283768,42.10856084,173.02,173.01,59.1]
[1748313284188,18.64964886,173.01,172.96,121.46]
[1748313284385,18.64964886,173.01,172.97,34.66]
[1748313284586,21.14704053,172.98,172.97,34.66]
[1748313285478,23.45944658,172.98,172.97,34.66]
[1748313285896,23.45944658,172.98,172.96,121.46]
[1748313286198,23.45944658,172.98,172.96,36.36]
[1748313286199,21.14704053,172.97,172.96,36.36]
[1748313286496,21.14704053,172.97,172.96,34.66]
[1748313286672,21.14704053,172.97,172.95,59.1]
[1748313286872,21.14704053,172.96,172.95,59.1]
[1748313287085,21.14704053,172.96,172.95,93.76]
[1748313287281,21.14704053,172.96,172.95,59.1]
[1748313287599,21.14704053,172.96,172.95,93.76]
[1748313288197,21.14704053,172.96,172.95,59.1]
[1748313288400,21.14704053,172.96,172.95,93.76]
[1748313289086,18.64964886,172.99,172.95,93.76]
[1748313289277,2.31225102,173.0,172.95,93.76]
[1748313289474,21.14704053,172.96,172.95,93.76]
[1748313291505,4.1283337,173.08,172.98,26.0]
[1748313291797,18.64964886,173.06,172.99,34.66]
[1748313291998,21.14704053,173.0,172.99,34.66]
[1748313294194,23.45917925,173.0,172.94,26.0]
[1748313294520,21.14704053,172.95,172.93,36.64]
[1748313294703,2.31213872,173.0,172.94,60.66]
[1748313294905,21.14704053,172.95,172.94,60.66]
[1748313295090,21.14704053,172.95,172.94,26.0]
[1748313295290,21.14704053,172.95,172.94,60.66]
[1748313299213,21.14704053,172.96,172.94,66.44235226]
[1748313299507,21.14704053,172.96,172.94,125.54235226]
[1748313300512,2.31199586,173.02,172.94,125.54235226]
[1748313300713,21.14704053,172.97,172.96,26.0]
[1748313300913,21.14704053,172.97,172.96,85.1]
[1748313304511,21.14704053,172.98,172.96,90.88168362]
[1748313304698,21.14704053,172.99,172.96,90.88168362]
[1748313304898,21.14704053,172.98,172.96,90.88168362]
[1748313306633,2.31147067,173.05,172.97,1.5452]
[1748313306795,2.31147067,173.05,173.01,26.0]
[1748313306990,2.31147067,173.05,173.02,34.66]
[1748313307917,21.14704053,173.03,173.02,34.66]
[1748313311124,2.31123151,173.07,173.02,93.76]
[1748313311309,21.14704053,173.04,173.02,93.76]
[1748313312400,21.14704053,173.03,173.02,93.76]
[1748313312924,18.64964886,173.1,173.02,93.76]
[1748313313231,21.14704053,173.03,173.02,93.76]
[1748313317710,21.14704053,173.03,173.02,59.1]
[1748313317916,21.14704053,173.03,173.02,93.76]
[1748313320438,23.45877837,173.03,173.02,59.1]
[1748313320637,3.00965352,173.1,173.02,93.76]
[1748313320941,21.14704053,173.06,173.03,26.0]
[1748313321240,21.14704053,173.06,173.03,85.1]
[1748313321441,18.64964886,173.1,173.03,85.1]
[1748313321625,21.14704053,173.05,173.03,85.1]
[1748313322538,21.95906052,173.1,173.03,90.8792973]
[1748313322539,21.14704053,173.06,173.03,90.8792973]
[1748313327329,21.14704053,173.05,173.03,85.1]
[1748313327536,2.3109365,173.09,173.03,85.1]
[1748313327742,21.14704053,173.05,173.03,85.1]
[1748313328041,21.14704053,173.06,173.03,85.1]
[1748313329048,2.31041963,173.13,173.03,92.51541949]
[1748313329217,21.14704053,173.08,173.03,92.51541949]
[1748313329427,21.14704053,173.05,173.04,34.66]
[1748313329844,21.14704053,173.06,173.04,34.66]
[1748313330923,21.9533887,173.13,173.04,34.66]
[1748313331123,21.14704053,173.06,173.04,93.76]
[1748313332346,18.64964886,173.11,173.04,93.76]
[1748313332549,21.14704053,173.06,173.04,93.76]
[1748313333254,2.310803,173.1,173.04,93.76]
[1748313333453,21.14704053,173.06,173.04,93.76]
[1748313333954,2.310803,173.1,173.04,93.76]
[1748313334253,21.14704053,173.06,173.04,93.76]
[1748313336157,2.31110599,173.08,173.04,93.76]
[1748313336341,21.14704053,173.06,173.04,93.76]
[1748313337056,2.310803,173.1,173.04,93.76]
[1748313337234,21.14704053,173.06,173.04,93.76]
[1748313337433,2.310803,173.1,173.04,93.76]
[1748313337434,21.14704053,173.05,173.04,93.76]
[1748313343055,8.08781051,173.1,173.04,93.76]
[1748313343355,21.14704053,173.05,173.04,93.76]
[1748313345976,2.310803,173.1,173.04,93.76]
[1748313346152,21.14704053,173.07,173.04,93.76]
[1748313347046,20.9601849,173.12,173.04,99.53894173]
[1748313347254,21.14704053,173.07,173.06,26.0]
[1748313349762,21.14704053,173.07,173.06,85.1]
[1748313350766,23.45824408,173.07,173.06,93.76]
[1748313351647,20.96045186,173.1,173.06,93.76]
[1748313351849,21.14704053,173.07,173.06,93.76]
[1748313352052,24.27638032,173.1,173.06,93.76]
[1748313352254,21.14704053,173.07,173.06,93.76]
[1748313352768,23.45824408,173.07,173.06,93.76]
[1748313353474,44.60528461,173.07,173.06,59.1]
[1748313353672,18.64964886,173.06,172.99,59.1]
[1748313353978,21.14704053,173.0,172.99,59.1]
[1748313354152,21.14704053,173.0,172.99,34.66]
[1748313354747,23.45917925,173.0,172.99,34.66]
[1748313355557,2.31187145,173.02,172.99,34.66]
[1748313355763,21.14704053,173.0,172.99,34.66]
[1748313357375,23.45917925,173.0,172.99,34.66]
[1748313358169,21.14704053,173.0,172.99,34.66]
[1748313358552,21.14704053,173.0,172.99,93.76]
[1748313358850,2.31203079,173.01,172.99,93.76]
[1748313359052,21.14704053,173.0,172.99,93.76]
[1748313360685,5.62638949,173.03,172.99,93.76]
[1748313360854,21.14704053,173.0,172.99,93.76]
[1748313362984,21.14704053,173.0,172.99,59.1]
[1748313363169,21.14704053,173.0,172.99,93.76]
[1748313365075,21.14704053,173.0,172.99,119.76]
[1748313366294,21.14704053,173.02,173.01,26.0]
[1748313366594,21.14704053,173.02,173.01,85.1]
[1748313367584,6.2765,173.08,173.01,85.1]
[1748313367782,21.14704053,173.02,173.01,85.1]
[1748313368289,21.14704053,173.03,173.01,85.1]
[1748313369791,21.14704053,173.02,173.01,85.1]
[1748313371888,2.31176781,173.03,173.01,85.1]
[1748313372088,21.14704053,173.02,173.01,85.1]
[1748313372283,21.14704053,173.02,173.01,119.76]
[1748313373697,21.14704053,173.02,172.98,59.1]
[1748313373877,21.14704053,172.99,172.98,85.1]
[1748313374191,21.14704053,172.99,172.98,119.76]
[1748313376080,2.31197541,173.02,172.98,119.76]
[1748313376285,2.31147067,173.05,173.01,26.0]
[1748313376477,2.31147067,173.05,173.02,34.66]
[1748313376678,21.14704053,173.03,173.02,34.66]
[1748313379297,21.14704053,173.03,173.02,93.76]
[1748313380796,5.62190045,173.06,173.02,93.76]
[1748313380984,21.14704053,173.03,173.02,93.76]
[1748313384998,2.31134152,173.06,173.02,93.76]
[1748313385187,21.14704053,173.05,173.04,26.0]
[1748313385379,21.14704053,173.05,173.04,60.66]
[1748313387483,2.31108862,173.08,173.04,60.66]
[1748313387702,5.62219348,173.1,173.04,119.76]
[1748313387905,21.14704053,173.06,173.04,119.76]
[1748313388206,21.14704053,173.06,173.04,125.5390074]
[1748313388580,21.14704053,173.07,173.04,125.5390074]
[1748313389207,3.31135351,173.12,173.04,125.5390074]
[1748313389418,21.14704053,173.08,173.04,125.5390074]
[1748313390006,21.14704053,173.07,173.04,125.5390074]
[1748313390385,21.14704053,173.07,173.04,119.76]
[1748313390589,21.14704053,173.06,173.04,119.76]
[1748313391106,8.08687615,173.12,173.04,119.76]
[1748313391306,21.14704053,173.07,173.04,125.53894423]
[1748313391494,21.14704053,173.06,173.04,125.53894423]
[1748313392001,5.62188955,173.12,173.04,125.53894423]
[1748313392510,21.14704053,173.07,173.04,125.53894423]
[1748313394510,21.14704053,173.07,173.04,85.1]
[1748313394811,21.14704053,173.06,173.05,34.66]
[1748313394991,21.14704053,173.06,173.05,93.76]
[1748313396004,21.14704053,173.06,173.05,34.66]
[1748313396590,23.45837763,173.06,173.05,34.66]
[1748313399114,21.14704053,173.06,173.05,34.66]
[1748313401109,23.45837763,173.06,173.05,34.66]
[1748313401498,2.3113371,173.06,173.05,34.66]
[1748313401694,23.45837763,173.06,173.05,34.66]
[1748313404618,23.45837763,173.06,173.03,26.0]
[1748313404816,2.3113371,173.06,173.05,34.66]
[1748313405120,21.14704053,173.06,173.05,34.66]
[1748313405916,23.45837763,173.06,173.05,34.66]
[1748313407735,29.2367204,173.06,173.02,59.1]
[1748313408019,23.45877837,173.03,172.99,59.6458075]
[1748313408196,21.14704053,173.0,172.99,0.5458075]
[1748313408395,21.14704053,173.0,172.99,35.2058075]
[1748313408813,21.14704053,173.0,172.99,61.2058075]
[1748313410894,21.14704053,173.0,172.99,120.3058075]
[1748313413319,21.14704053,173.01,172.99,120.3058075]
[1748313413521,21.14704053,173.02,172.99,126.08643587]
[1748313415408,21.14704053,173.02,172.99,127.71033587]
[1748313418022,21.14704053,173.0,172.99,85.6458075]
[1748313418227,21.14704053,173.0,172.99,94.3058075]
[1748313418429,23.45917925,173.0,172.99,120.3058075]
[1748313419726,21.14704053,173.0,172.99,120.3058075]
[1748313420137,23.45917925,173.0,172.99,120.3058075]
[1748313426238,21.14704053,173.0,172.99,120.3058075]
[1748313431647,2.31189531,173.02,172.99,120.3058075]
[1748313431831,21.14704053,173.0,172.99,120.3058075]
[1748313433027,20.64704053,173.0,172.99,120.3058075]
[1748313434651,22.95917925,173.0,172.99,35.2058075]
[1748313435452,20.64704053,173.0,172.99,35.2058075]
[1748313438463,20.9613867,173.03,172.99,94.3058075]
[1748313438753,21.14704053,173.0,172.99,94.3058075]
[1748313443662,23.45917925,173.0,172.99,94.3058075]
[1748313444454,23.45917925,173.0,172.99,35.2058075]
[1748313445755,23.45917925,173.0,172.99,0.5458075]
[1748313445756,63.25586864,173.0,172.99,0.5458075]
[1748313447253,66.57146145,173.0,172.99,0.5458075]
[1748313451175,21.14704053,172.98,172.96,34.66]
[1748313452199,2.31253974,172.97,172.95,34.66]
[1748313452379,21.14704053,172.96,172.95,34.66]
[1748313453080,23.45971398,172.96,172.95,34.66]
[1748313454358,42.10936284,172.96,172.94,34.66]
[1748313454551,21.14704053,172.95,172.94,34.66]
[1748313455069,20.96232231,172.96,172.94,34.66]
[1748313455261,21.14704053,172.95,172.94,34.66]
[1748313455873,23.45984769,172.95,172.94,34.66]
[1748313456074,23.45984769,172.95,172.92,85.1]
[1748313456274,21.14704053,172.93,172.92,85.1]
[1748313456455,21.14704053,172.93,172.92,119.78]
[1748313458175,21.14704053,172.93,172.92,85.1]
[1748313458475,21.14704053,172.93,172.92,119.78]
[1748313461558,21.14704053,172.93,172.92,93.78]
[1748313462576,21.14704053,172.93,172.92,59.1]
[1748313462767,21.14704053,172.93,172.92,93.78]
[1748313463577,2.31280716,172.95,172.92,93.78]
[1748313463767,21.14704053,172.93,172.92,93.78]
[1748313463969,2.31280716,172.95,172.92,93.78]
[1748313464363,21.14704053,172.93,172.92,93.78]
[1748313464792,3.31538134,172.97,172.92,93.78]
[1748313464964,21.14704053,172.93,172.92,93.78]
[1748313465485,3.31538134,172.97,172.92,93.78]
[1748313465486,2.31256674,172.97,172.92,93.78]
[1748313465664,21.14704053,172.93,172.92,93.78]
[1748313467494,5.62781674,172.98,172.92,125.56302105]
[1748313467781,21.14704053,172.95,172.94,26.0]
[1748313469372,23.4599408,172.95,172.92,59.1]
[1748313469677,2.31290027,172.95,172.94,34.68]
[1748313470680,23.4599408,172.95,172.94,34.68]
[1748313471262,21.14704053,172.95,172.94,34.68]
[1748313477492,23.45984769,172.95,172.94,34.68]
[1748313479297,21.14704053,172.95,172.94,34.68]
[1748313481098,23.45984769,172.95,172.94,34.68]
[1748313482703,18.64964886,172.94,172.92,59.1]
[1748313482999,18.64964886,172.94,172.9,36.42]
[1748313483000,21.14704053,172.93,172.91,34.68]
[1748313483199,21.14704053,172.92,172.91,34.68]
[1748313484087,21.14704053,172.92,172.89,59.1]
[1748313484287,21.14704053,172.97,172.94,26.0]
[1748313484488,21.66032834,173.02,172.97,26.0]
[1748313484694,25.27537423,172.99,172.98,34.68]